fUST/lending_fUST_20260310
["ID","MTS","AMOUNT","RATE_DAILY","PERIOD"]
[408050569,1773072642393,-1722.21771261,5e-05,2]
[408050571,1773072642405,-521.02433296,5e-05,2]
[408050574,1773072642421,-500.44,5.1e-05,2]
[408050577,1773072642435,-500.0,5.2e-05,2]
[408050579,1773072642453,-500.0,5.2e-05,2]
[408050581,1773072642468,-511.73382063,5.2e-05,2]
[408050583,1773072642481,-500.0,5.2e-05,2]
[408050586,1773072642492,-500.0,5.2e-05,2]
[408050588,1773072642505,-511.31234387,5.2e-05,2]
[408050590,1773072642517,-2277.6108232,5.261e-05,2]
[408050593,1773072642530,-599.60298507,5.27e-05,2]
[408050595,1773072642544,-2398.4119403,5.27e-05,2]
[408050597,1773072642558,-1000.0,5.309e-05,2]
[408050600,1773072642572,-244.0,5.309e-05,2]
[408050602,1773072642586,-3000.0,5.352e-05,2]
[408050605,1773072642600,-3000.0,5.352e-05,2]
[408050607,1773072642615,-3000.0,5.352e-05,2]
[408050610,1773072642633,-3000.0,5.352e-05,2]
[408050613,1773072642646,-31773.49413545,5.401e-05,2]
[408050616,1773072642660,-500.0,5.479e-05,2]
[408050621,1773072642673,-500.0,5.479e-05,2]
[408050624,1773072642685,-500.0,5.479e-05,2]
[408050628,1773072642697,-500.0,5.479e-05,2]
[408050632,1773072642710,-500.0,5.479e-05,2]
[408050635,1773072642723,-270.15717503,5.479e-05,2]
[408050640,1773072642736,-500.0,5.479e-05,2]
[408050642,1773072642749,-500.0,5.479e-05,2]
[408050644,1773072642762,-500.0,5.479e-05,2]
[408050647,1773072642775,-500.0,5.479e-05,2]
[408050649,1773072642788,-500.0,5.479e-05,2]
[408050651,1773072642801,-500.0,5.479e-05,2]
[408050654,1773072642814,-500.0,5.479e-05,2]
[408050656,1773072642827,-500.0,5.479e-05,2]
[408050659,1773072642840,-500.0,5.479e-05,2]
[408050661,1773072642853,-500.0,5.479e-05,2]
[408050663,1773072642866,-500.0,5.479e-05,2]
[408050666,1773072642880,-500.0,5.479e-05,2]
[408050668,1773072642892,-500.0,5.479e-05,2]
[408050670,1773072642905,-500.0,5.479e-05,2]
[408050673,1773072642918,-500.0,5.479e-05,2]
[408050675,1773072642930,-500.0,5.479e-05,2]
[408050678,1773072642943,-500.0,5.479e-05,2]
[408050680,1773072642956,-500.0,5.479e-05,2]
[408050682,1773072642969,-500.0,5.479e-05,2]
[408050685,1773072642980,-500.0,5.479e-05,2]
[408050687,1773072642993,-638.0311838,5.479e-05,2]
[408050689,1773072643005,-638.0311838,5.507e-05,2]
[408050692,1773072643017,-638.0311838,5.534e-05,2]
[408050694,1773072643030,-638.0311838,5.562e-05,2]
[408050696,1773072643042,-638.0311838,5.589e-05,2]
[408050699,1773072643056,-638.0311838,5.616e-05,2]
[408050701,1773072643070,-638.0311838,5.644e-05,2]
[408050703,1773072643081,-638.0311838,5.671e-05,2]
[408050705,1773072643094,-638.0311838,5.699e-05,2]
[408050708,1773072643107,-638.0311838,5.726e-05,2]
[408050710,1773072643119,-638.0311838,5.753e-05,2]
[408050712,1773072643132,-638.0311838,5.781e-05,2]
[408050715,1773072643144,-621.78829552,5.818e-05,2]
[408050717,1773072643156,-2487.15318209,5.818e-05,2]
[408050719,1773072643168,-1000.0,5.84e-05,2]
[408050721,1773072643180,-492.0,5.84e-05,2]
[408050724,1773072643192,-334.763085,5.844e-05,2]
[408050726,1773072643204,-3242.99344664,5.9e-05,2]
[408050728,1773072643217,-3500.0,5.9e-05,2]
[408050731,1773072643229,-3500.0,5.9e-05,2]
[408050733,1773072643241,-334.763085,5.917e-05,2]
[408050735,1773072643253,-334.763085,5.99e-05,2]
[408050738,1773072643266,-497.61171215,6.037e-05,2]
[408050740,1773072643279,-334.763085,6.063e-05,2]
[408050743,1773072643290,-334.763085,6.136e-05,2]
[408050745,1773072643303,-209.43974438,6.364e-05,2]
[408050747,1773072643315,-644.79446246,6.366e-05,2]
[408050749,1773072643327,-2579.17784983,6.366e-05,2]
[408050752,1773072643339,-1000.0,6.424e-05,2]
[408050754,1773072643352,-791.0,6.424e-05,2]
[408050756,1773072643364,-4000.0,6.448e-05,2]
[408050759,1773072643377,-4000.0,6.448e-05,2]
[408050761,1773072643390,-38000.0,6.788e-05,2]
[408050763,1773072643399,-38000.0,6.797e-05,2]
[408050765,1773072643408,-38000.0,6.805e-05,2]
[408050767,1773072643418,-38000.0,6.814e-05,2]
[408050769,1773072643427,-38000.0,6.823e-05,2]
[408050771,1773072643437,-38000.0,6.832e-05,2]
[408050773,1773072643446,-38000.0,6.841e-05,2]
[408050775,1773072643455,-217.26727566,6.849e-05,2]
[408050777,1773072643464,-297.8001936,6.849e-05,2]
[408050779,1773072643473,-437.6747297,6.849e-05,2]
[408050781,1773072643483,-338.56363164,6.849e-05,2]
[408050783,1773072643493,-7799.70954596,6.849e-05,2]
[408050785,1773072643502,-6725.25976157,6.849e-05,2]
[408050787,1773072643512,-5730.3988501,6.849e-05,2]
[408050789,1773072643521,-4815.12681154,6.849e-05,2]
[408050791,1773072643531,-3979.4436459,6.849e-05,2]
[408050793,1773072643540,-3223.34935318,6.849e-05,2]
[408050795,1773072643550,-2546.84393338,6.849e-05,2]
[408050797,1773072643559,-1949.92738649,6.849e-05,2]
[408050799,1773072643569,-1432.59971252,6.849e-05,2]
[408050801,1773072643578,-994.86091148,6.849e-05,2]
[408050803,1773072643587,-636.71098334,6.849e-05,2]
[408050805,1773072643597,-358.14992813,6.849e-05,2]
[408050807,1773072643606,-198.77321011,6.849e-05,2]
[408050809,1773072643616,-10784.17493889,6.849e-05,2]
[408050811,1773072643626,-9732.71788235,6.849e-05,2]
[408050813,1773072643637,-8735.1817005,6.849e-05,2]
[408050815,1773072643646,-7791.56639335,6.849e-05,2]
[408050817,1773072643655,-6901.87196089,6.849e-05,2]
[408050819,1773072643665,-6066.09840313,6.849e-05,2]
[408050821,1773072643674,-5284.24572006,6.849e-05,2]
[408050824,1773072643685,-4556.31391168,6.849e-05,2]
[408050826,1773072643694,-3882.302978,6.849e-05,2]
[408050828,1773072643703,-3262.21291902,6.849e-05,2]
[408050830,1773072643712,-2696.04373472,6.849e-05,2]
[408050831,1773072643723,-2183.79542513,6.849e-05,2]
[408050832,1773072643732,-1725.46799022,6.849e-05,2]
[408050833,1773072643740,-1321.06143001,6.849e-05,2]
[408050834,1773072643750,-970.5757445,6.849e-05,2]
[408050835,1773072643759,-674.01093368,6.849e-05,2]
[408050836,1773072643768,-431.36699756,6.849e-05,2]
[408050837,1773072643778,-377.06867674,6.849e-05,2]
[408050838,1773072643787,-300.0,6.849e-05,2]
[408050839,1773072643796,-38000.0,6.849e-05,2]
[408050840,1773072643805,-38000.0,6.858e-05,2]
[408050841,1773072643814,-38000.0,6.867e-05,2]
[408050842,1773072643824,-38000.0,6.886e-05,2]
[408050843,1773072643834,-38000.0,6.886e-05,2]
[408050844,1773072643843,-33215.43281737,6.911e-05,2]
[408050845,1773072643852,-668.65185757,6.914e-05,2]
[408050846,1773072643861,-2674.60743027,6.914e-05,2]
[408050847,1773072643871,-4500.0,6.996e-05,2]
[408050848,1773072643880,-3787.44851815,6.996e-05,2]
[408050849,1773072643889,-1000.0,7.066e-05,2]
[408050850,1773072643898,-1000.0,7.066e-05,2]
[408050851,1773072643907,-32118.47806902,7.149e-05,2]
[408050853,1773072643916,-600.0,7.397e-05,2]
[408050855,1773072643926,-693.3919763,7.462e-05,2]
[408050856,1773072643935,-2773.56790519,7.462e-05,2]
[408050858,1773072643945,-1041.03108086,7.544e-05,2]
[408050860,1773072643954,-1000.0,7.773e-05,2]
[408050862,1773072643964,-1000.0,7.773e-05,2]
[408050864,1773072643974,-579.0,7.773e-05,2]
[408050866,1773072643983,-2593.39976595,7.921e-05,2]
[408050868,1773072643992,-900.0,7.945e-05,2]
[408050870,1773072644001,-192.60700676,8.01e-05,2]
[408050872,1773072644011,-2876.18991768,8.01e-05,2]
[408050874,1773072644020,-37464.3968914,8.024e-05,2]
[408050876,1773072644030,-563.47208582,8.037e-05,2]
[408050878,1773072644039,-770.0,8.219e-05,2]
[408050880,1773072644050,-500.0,8.219e-05,2]
[408050882,1773072644063,-500.0,8.219e-05,2]
[408050884,1773072644072,-264.71972266,8.219e-05,2]
[408050886,1773072644081,-186.89935515,8.219e-05,2]
[408050888,1773072644091,-209.36244306,8.219e-05,2]
[408050890,1773072644101,-500.0,8.219e-05,2]
[408050892,1773072644111,-500.0,8.219e-05,2]
[408050894,1773072644119,-500.0,8.219e-05,2]
[408050896,1773072644131,-523.63769853,8.219e-05,2]
[408050898,1773072644141,-500.0,8.219e-05,2]
[408050900,1773072644150,-500.0,8.219e-05,2]
[408050902,1773072644160,-500.0,8.219e-05,2]
[408050904,1773072644169,-500.0,8.219e-05,2]
[408050906,1773072644179,-500.0,8.219e-05,2]
[408050908,1773072644189,-280.72832793,8.219e-05,2]
[408050910,1773072644199,-500.0,8.219e-05,2]
[408050912,1773072644208,-500.0,8.219e-05,2]
[408050914,1773072644221,-151.73278917,8.219e-05,2]
[408050916,1773072644230,-155.88968127,8.219e-05,2]
[408050973,1773072644761,-154.14365007,8.219e-05,2]
[408050976,1773072644782,-169.22682819,8.219e-05,2]
[408050980,1773072644801,-500.0,8.219e-05,2]
[408050982,1773072644819,-500.0,8.219e-05,2]
[408050984,1773072644829,-500.0,8.219e-05,2]
[408050986,1773072644839,-194.5561245,8.219e-05,2]
[408050989,1773072644848,-239.22025448,8.219e-05,2]
[408050991,1773072644857,-288.66517416,8.219e-05,2]
[408050992,1773072644866,-848.0,8.219e-05,2]
[408050994,1773072644876,-150.0,8.219e-05,2]
[408050996,1773072644886,-150.7842817,8.219e-05,2]
[408050999,1773072644895,-150.0,8.219e-05,2]
[408051001,1773072644904,-254.33049127,8.219e-05,2]
[408051003,1773072644914,-203.53849023,8.219e-05,2]
[408051005,1773072644923,-182.26852765,8.219e-05,2]
[408051006,1773072644932,-500.0,8.219e-05,2]
[408051008,1773072644941,-770.0,8.274e-05,2]
[408051010,1773072644950,-500.0,8.274e-05,2]
[408051012,1773072644959,-500.0,8.274e-05,2]
[408051014,1773072644968,-500.0,8.274e-05,2]
[408051016,1773072644977,-500.0,8.274e-05,2]
[408051018,1773072644987,-500.0,8.274e-05,2]
[408051021,1773072644998,-500.0,8.274e-05,2]
[408051023,1773072645008,-500.0,8.274e-05,2]
[408051024,1773072645018,-500.0,8.274e-05,2]
[408051026,1773072645028,-500.0,8.274e-05,2]
[408051028,1773072645041,-500.0,8.274e-05,2]
[408051031,1773072645052,-848.0,8.274e-05,2]
[408051033,1773072645063,-150.0,8.274e-05,2]
[408051034,1773072645072,-770.0,8.329e-05,2]
[408051036,1773072645081,-500.0,8.329e-05,2]
[408051038,1773072645091,-500.0,8.329e-05,2]
[408051040,1773072645102,-600.56315041,8.329e-05,2]
[408051042,1773072645112,-500.0,8.329e-05,2]
[408051045,1773072645121,-500.0,8.329e-05,2]
[408051046,1773072645136,-500.0,8.329e-05,2]
[408051048,1773072645146,-349.53301485,8.329e-05,2]
[408051050,1773072645156,-500.0,8.329e-05,2]
[408051052,1773072645165,-500.0,8.329e-05,2]
[408051053,1773072645175,-489.72488695,8.329e-05,2]
[408051055,1773072645184,-848.0,8.329e-05,2]
[408051056,1773072645193,-172.63016517,8.329e-05,2]
[408051058,1773072645203,-770.0,8.383e-05,2]
[408051059,1773072645212,-195.8226361,8.383e-05,2]
[408051061,1773072645221,-500.0,8.383e-05,2]
[408051062,1773072645231,-500.0,8.383e-05,2]
[408051064,1773072645240,-500.0,8.383e-05,2]
[408051065,1773072645250,-500.0,8.383e-05,2]
[408051067,1773072645259,-500.0,8.383e-05,2]
[408051068,1773072645268,-500.0,8.383e-05,2]
[408051070,1773072645277,-848.0,8.383e-05,2]
[408051071,1773072645286,-770.0,8.438e-05,2]
[408051073,1773072645295,-500.0,8.438e-05,2]
[408051074,1773072645304,-500.0,8.438e-05,2]
[408051076,1773072645314,-500.0,8.438e-05,2]
[408051077,1773072645324,-500.0,8.438e-05,2]
[408051079,1773072645333,-500.0,8.438e-05,2]
[408051080,1773072645343,-500.0,8.438e-05,2]
[408051082,1773072645353,-848.0,8.438e-05,2]
[408051084,1773072645362,-770.0,8.493e-05,2]
[408051085,1773072645373,-500.0,8.493e-05,2]
[408051087,1773072645383,-500.0,8.493e-05,2]
[408051088,1773072645393,-500.0,8.493e-05,2]
[408051090,1773072645403,-500.0,8.493e-05,2]
[408051092,1773072645413,-611.5401322,8.493e-05,2]
[408051093,1773072645422,-500.0,8.493e-05,2]
[408051095,1773072645431,-848.0,8.493e-05,2]
[408051098,1773072645441,-500.0,8.493e-05,2]
[408051100,1773072645450,-1200.0,8.493e-05,2]
[408051102,1773072645460,-354.18073822,8.527e-05,5]
[408051103,1773072645469,-1157.11,8.528e-05,30]
[408051105,1773072645478,-770.0,8.548e-05,2]
[408051106,1773072645488,-500.0,8.548e-05,2]
[408051108,1773072645497,-500.0,8.548e-05,2]
[408051109,1773072645507,-443.03610092,8.548e-05,2]
[408051111,1773072645517,-500.0,8.548e-05,2]
[408051113,1773072645526,-500.0,8.548e-05,2]
[408051114,1773072645535,-848.0,8.548e-05,2]
[408051116,1773072645544,-1000.0,8.55e-05,2]
[408051117,1773072645553,-1000.0,8.55e-05,2]
[408051119,1773072645563,-1000.0,8.55e-05,2]
[408051121,1773072645572,-2982.60894464,8.558e-05,2]
[408051122,1773072645581,-153.0,8.6e-05,2]
[408051124,1773072645591,-153.0,8.6e-05,2]
[408051126,1773072645601,-770.0,8.603e-05,2]
[408051127,1773072645611,-500.0,8.603e-05,2]
[408051129,1773072645620,-500.0,8.603e-05,2]
[408051130,1773072645632,-500.0,8.603e-05,2]
[408051132,1773072645641,-500.0,8.603e-05,2]
[408051134,1773072645652,-848.0,8.603e-05,2]
[408051135,1773072645661,-545.011113,8.603e-05,2]
[408051137,1773072645670,-770.0,8.657e-05,2]
[408051139,1773072645680,-477.27258677,8.657e-05,2]
[408051140,1773072645689,-407.48495069,8.657e-05,2]
[408051142,1773072645698,-500.0,8.657e-05,2]
[408051143,1773072645707,-500.0,8.657e-05,2]
[408051145,1773072645717,-848.0,8.657e-05,2]
[408051147,1773072645725,-770.0,8.712e-05,2]
[408051148,1773072645735,-500.0,8.712e-05,2]
[408051149,1773072645744,-210.35542182,8.712e-05,2]
[408051150,1773072645752,-848.0,8.712e-05,2]
[408051151,1773072645761,-1656.62147769,8.712e-05,2]
[408051152,1773072645771,-770.0,8.767e-05,2]
[408051153,1773072645781,-500.0,8.767e-05,2]
[408051154,1773072645793,-848.0,8.767e-05,2]
[408051155,1773072645801,-500.0,8.767e-05,2]
[408051156,1773072645810,-770.0,8.822e-05,2]
[408051157,1773072645819,-813.44942239,8.822e-05,2]
[408051158,1773072645828,-500.0,8.822e-05,2]
[408051159,1773072645836,-848.0,8.822e-05,2]
[408051160,1773072645845,-770.0,8.877e-05,2]
[408051161,1773072645854,-500.0,8.877e-05,2]
[408051162,1773072645863,-848.0,8.877e-05,2]
[408051163,1773072645873,-37464.3968914,8.898e-05,2]
[408051164,1773072645881,-770.0,8.931e-05,2]
[408051165,1773072645890,-500.0,8.931e-05,2]
[408051166,1773072645899,-848.0,8.931e-05,2]
[408051167,1773072645908,-770.0,8.986e-05,2]
[408051168,1773072645917,-500.0,8.986e-05,2]
[408051169,1773072645927,-848.0,8.986e-05,2]
[408051170,1773072645935,-770.0,9.041e-05,2]
[408051171,1773072645944,-500.0,9.041e-05,2]
[408051172,1773072645954,-848.0,9.041e-05,2]
[408051173,1773072645963,-500.0,9.041e-05,2]
[408051174,1773072645972,-1500.0,9.041e-05,2]
[408051175,1773072645981,-2314.23,9.048e-05,30]
[408051176,1773072645990,-770.0,9.096e-05,2]
[408051177,1773072645999,-500.0,9.096e-05,2]
[408051178,1773072646007,-848.0,9.096e-05,2]
[408051179,1773072646016,-3092.96547559,9.106e-05,2]
[408051180,1773072646025,-770.0,9.151e-05,2]
[408051181,1773072646034,-495.63815461,9.151e-05,2]
[408051182,1773072646043,-848.0,9.151e-05,2]
[408051183,1773072646052,-276.12024628,9.176e-05,18]
[408051184,1773072646067,-770.0,9.205e-05,2]
[408051185,1773072646076,-848.0,9.205e-05,2]
[408051186,1773072646084,-770.0,9.26e-05,2]
[408051187,1773072646093,-848.0,9.26e-05,2]
[408051188,1773072646103,-770.0,9.315e-05,2]
[408051189,1773072646112,-848.0,9.315e-05,2]
[408051190,1773072646121,-500.0,9.315e-05,2]
[408051191,1773072646131,-770.0,9.37e-05,2]
[408051192,1773072646140,-848.0,9.37e-05,2]
[408051193,1773072646149,-579.0,9.405e-05,2]
[408051194,1773072646159,-770.0,9.424e-05,2]
[408051195,1773072646167,-848.0,9.424e-05,2]
[408051196,1773072646177,-792.35834089,9.479e-05,2]
[408051197,1773072646186,-867.57455355,9.479e-05,2]
[408051198,1773072646195,-650.69752785,9.5e-05,2]
[408051199,1773072646204,-5000.0,9.5e-05,2]
[408051200,1773072646213,-3471.34,9.569e-05,30]
[408051201,1773072646222,-151.0,9.589e-05,2]
[408051202,1773072646231,-151.0,9.589e-05,2]
[408051203,1773072646240,-151.0,9.589e-05,2]
[408051204,1773072646249,-152.120153,9.589e-05,2]
[408051205,1773072646259,-500.0,9.589e-05,2]
[408051206,1773072646268,-150.0,9.589e-05,2]
[408051207,1773072646277,-1800.0,9.589e-05,2]
[408051208,1773072646286,-276.12024628,9.639e-05,19]
[408051209,1773072646295,-3207.40519818,9.654e-05,2]
[408051210,1773072646304,-37475.07517984,9.772e-05,2]
[408051211,1773072646313,-160.0,9.8e-05,3]
[408051212,1773072646321,-153.0,9.8e-05,2]
[408051213,1773072646330,-153.0,9.8e-05,2]
[408051214,1773072646339,-500.0,9.863e-05,2]
[408051215,1773072646347,-160.0,9.88e-05,3]
[408051216,1773072646356,-500.0,0.0001,2]
[408051217,1773072646366,-500.0,0.0001,2]
[408051218,1773072646376,-500.0,0.0001,2]
[408051219,1773072646385,-503.9283665,0.0001,2]
[408051220,1773072646394,-500.0,0.0001,2]
[408051221,1773072646403,-500.0,0.0001,2]
[408051222,1773072646412,-500.0,0.0001,2]
[408051223,1773072646421,-250.491314,0.0001,2]
[408051224,1773072646430,-272.00753414,0.0001,2]
[408051225,1773072646439,-125456.54418414,0.0001,2]
[408051226,1773072646448,-982.37078532,0.0001,2]
[408051227,1773072646456,-161.19,0.0001,2]
[408051228,1773072646465,-2899.999999,0.0001,2]
[408051229,1773072646474,-496.52460616,0.0001,7]
[408051230,1773072646483,-1924.91999136,0.0001,2]
[408051231,1773072646492,-182.21711214,0.0001,2]
[408051232,1773072646501,-840.63015351,0.0001,2]
[408051233,1773072646510,-943.5957773,0.0001,2]
[408051234,1773072646520,-1519.31377836,0.0001,2]
[408051235,1773072646529,-764.8464263,0.0001,2]
[408051236,1773072646538,-151.0,0.0001,2]
[408051237,1773072646548,-151.0,0.0001,2]
[408051238,1773072646557,-151.0,0.0001,2]
[408051239,1773072646566,-151.0,0.0001,2]
[408051240,1773072646575,-151.0,0.0001,2]
[408051241,1773072646583,-151.0,0.0001,2]
[408051242,1773072646592,-151.0,0.0001,2]
[408051243,1773072646601,-151.0,0.0001,2]
[408051244,1773072646610,-180.0,0.0001,2]
[408051245,1773072646619,-151.0,0.0001,2]
[408051246,1773072646629,-151.0,0.0001,2]
[408051247,1773072646638,-151.0,0.0001,2]
[408051248,1773072646647,-151.0,0.0001,2]
[408051249,1773072646656,-151.0,0.0001,2]
[408051250,1773072646666,-151.0,0.0001,2]
[408051251,1773072646687,-151.0,0.0001,2]
[408051252,1773072646696,-151.0,0.0001,2]
[408051253,1773072646705,-151.0,0.0001,2]
[408051254,1773072646714,-151.0,0.0001,2]
[408051255,1773072646723,-151.0,0.0001,2]
[408051256,1773072646732,-151.0,0.0001,2]
[408051257,1773072646741,-238.51138525,0.0001,2]
[408051258,1773072646750,-238.74989664,0.0001,2]
[408051259,1773072646759,-238.74989664,0.0001,2]
[408051260,1773072646770,-23665.55704018,0.0001,2]
[408051261,1773072646779,-629.33245949,0.00010037,2]
[408051262,1773072646788,-4628.45,0.00010089,30]
[408051263,1773072646797,-276.12024628,0.00010103,20]
[408051264,1773072646805,-173.17,0.00010119,2]
[408051265,1773072646814,-500.0,0.00010137,2]
[408051266,1773072646824,-300.0,0.00010137,2]
[408051267,1773072646833,-2100.0,0.00010137,2]
[408051268,1773072646842,-379.70850008,0.000102,2]
[408051269,1773072646851,-103776.0,0.000102,28]
[408051270,1773072646860,-668.8933611,0.000102,2]
[408051271,1773072646869,-187.31890862,0.000102,2]
[408051272,1773072646878,-309.44381872,0.000102,2]
[408051273,1773072646887,-153.11872716,0.000102,2]
[408051274,1773072646896,-367.01551081,0.000102,2]
[408051275,1773072646904,-154.72190936,0.000102,2]
[408051276,1773072646913,-183.50775539,0.000102,2]
[408051277,1773072646922,-158.34642947,0.000102,2]
[408051278,1773072646932,-199.73290842,0.000102,2]
[408051279,1773072646941,-292.82613973,0.000102,2]
[408051280,1773072646950,-323.58452265,0.000102,2]
[408051281,1773072646959,-220.02715671,0.000102,2]
[408051282,1773072646968,-254.94880873,0.000102,2]
[408051283,1773072646977,-187.28610808,0.000102,2]
[408051284,1773072646986,-194.43819634,0.000102,2]
[408051285,1773072646995,-221.6467871,0.000102,2]
[408051286,1773072647004,-3326.07919052,0.00010202,2]
[408051287,1773072647013,-1519.31377836,0.00010204,2]
[408051288,1773072647022,-943.5957773,0.00010345,2]
[408051289,1773072647032,-764.8464263,0.00010345,2]
[408051290,1773072647041,-1519.31377836,0.00010409,2]
[408051291,1773072647051,-500.0,0.00010411,2]
[408051292,1773072647064,-161.19,0.000105,2]
[408051293,1773072647072,-276.12024628,0.00010566,22]
[408051294,1773072647082,-5785.56,0.0001061,30]
[408051295,1773072647091,-1519.31377836,0.00010613,2]
[408051296,1773072647102,-37475.07517984,0.00010647,2]
[408051297,1773072647111,-500.0,0.00010685,2]
[408051298,1773072647120,-507.6585838,0.00010685,2]
[408051299,1773072647129,-2400.0,0.00010685,2]
[408051300,1773072647140,-943.5957773,0.00010691,2]
[408051301,1773072647149,-764.8464263,0.00010691,2]
[408051302,1773072647158,-3449.14412057,0.0001075,2]
[408051303,1773072647169,-1519.31377836,0.00010818,2]
[408051304,1773072647178,-161.19,0.000109,2]
[408051305,1773072647187,-379.70850008,0.00010931,2]
[408051306,1773072647196,-56246.1242466,0.00010959,2]
[408051307,1773072647205,-166.0,0.00010959,2]
[408051308,1773072647214,-166.0,0.00010959,2]
[408051309,1773072647222,-268.83430884,0.00010959,2]
[408051310,1773072647231,-500.0,0.00010959,2]
[408051311,1773072647241,-282.77569833,0.00010959,2]
[408051312,1773072647250,-285.66,0.00011,2]
[408051313,1773072647259,-151.0,0.00011,2]
[408051314,1773072647269,-151.0,0.00011,2]
[408051315,1773072647278,-151.0,0.00011,2]
[408051316,1773072647287,-151.0,0.00011,2]
[408051318,1773072647296,-151.0,0.00011,2]
[408051319,1773072647306,-151.0,0.00011,2]
[408051321,1773072647316,-165.49621437,0.00011014,2]
[408051322,1773072647326,-1519.31377836,0.00011022,7]
[408051323,1773072647335,-276.12024628,0.0001103,23]
[408051324,1773072647345,-943.5957773,0.00011036,7]
[408051325,1773072647355,-764.8464263,0.00011036,7]
[408051326,1773072647364,-6942.68,0.0001113,30]
[408051327,1773072647374,-1519.31377836,0.00011226,7]
[408051328,1773072647383,-500.0,0.00011233,2]
[408051329,1773072647393,-2700.0,0.00011233,2]
[408051330,1773072647403,-3576.76245303,0.00011298,2]
[408051331,1773072647413,-943.5957773,0.00011381,7]
[408051332,1773072647425,-764.8464263,0.00011381,7]
[408051333,1773072647435,-161.19,0.000114,2]
[408051334,1773072647445,-1519.31377836,0.00011431,7]
[408051335,1773072647454,-276.12024628,0.00011493,25]
[408051336,1773072647464,-500.0,0.00011507,2]
[408051338,1773072647473,-37929.8708028,0.00011521,2]
[408051340,1773072647483,-367.01551081,0.00011533,7]
[408051342,1773072647492,-187.28610808,0.0001157,7]
[408051344,1773072647502,-292.82613973,0.00011602,7]
[408051346,1773072647512,-220.02715671,0.00011602,7]
[408051348,1773072647522,-199.73290842,0.00011602,7]
[408051350,1773072647533,-1519.31377836,0.00011635,7]
[408051351,1773072647545,-8099.79,0.00011651,30]
[408051352,1773072647557,-379.70850008,0.00011661,7]
[408051354,1773072647567,-153.11872716,0.00011661,7]
[408051356,1773072647577,-943.5957773,0.00011727,7]
[408051358,1773072647588,-764.8464263,0.00011727,7]
[408051360,1773072647598,-500.0,0.00011781,2]
[408051362,1773072647607,-3000.0,0.00011781,2]
[408051364,1773072647617,-1519.31377836,0.00011839,7]
[408051365,1773072647627,-3709.10266379,0.00011846,2]
[408051367,1773072647637,-161.19,0.000119,2]
[408051369,1773072647647,-173.17,0.00011909,2]
[408051370,1773072647657,-276.12024628,0.00011957,26]
[408051371,1773072647666,-695.19283315,0.00012037,2]
[408051372,1773072647676,-1519.31377836,0.00012044,7]
[408051373,1773072647686,-500.0,0.00012055,2]
[408051374,1773072647696,-943.5957773,0.00012072,7]
[408051375,1773072647706,-764.8464263,0.00012072,7]
[408051376,1773072647716,-9256.9,0.00012171,30]
[408051377,1773072647726,-1519.31377836,0.00012248,7]
[408051378,1773072647736,-161.19,0.000123,2]
[408051379,1773072647745,-3300.0,0.00012329,2]
[408051380,1773072647755,-21780.53,0.00012329,2]
[408051381,1773072647764,-18150.44,0.00012329,2]
[408051382,1773072647774,-15125.37,0.00012329,2]
[408051383,1773072647784,-12604.48,0.00012329,2]
[408051384,1773072647793,-10503.73,0.00012329,2]
[408051385,1773072647967,-8753.11,0.00012329,2]
[408051386,1773072647978,-7294.26,0.00012329,2]
[408051387,1773072647987,-6078.55,0.00012329,2]
[408051388,1773072647997,-5065.45,0.00012329,2]
[408051389,1773072648006,-4221.21,0.00012329,2]
[408051390,1773072648015,-3517.68,0.00012329,2]
[408051391,1773072648023,-2931.4,0.00012329,2]
[408051392,1773072648032,-2442.83,0.00012329,2]
[408051393,1773072648042,-2035.69,0.00012329,2]
[408051395,1773072648052,-1696.41,0.00012329,2]
[408051397,1773072648066,-1413.68,0.00012329,2]
[408051399,1773072648075,-1178.06,0.00012329,2]
[408051401,1773072648085,-981.72,0.00012329,2]
[408051403,1773072648094,-818.1,0.00012329,2]
[408051405,1773072648105,-681.75,0.00012329,2]
[408051407,1773072648114,-568.12,0.00012329,2]